[Event "Late-Titled-Tuesday-Blitz-December-26-2023"]
[Site "Chess.com"]
[Date "2023.12.26"]
[Round "7"]
[White "Agibileg"]
[Black "prime-morty"]
[Result "0-1"]
[WhiteElo "2683"]
[BlackElo "2572"]
[TimeControl "180+1"]
[EndTime "15:18:06 PST"]
[Termination "prime-morty won by checkmate"]

1. d4 {[%clk 0:03:00.9]} 1... d6 {[%clk 0:03:00.3]} 2. Nf3 {[%clk 0:02:59.6]}
2... g6 {[%clk 0:03:00.8]} 3. Nc3 {[%clk 0:02:59.7]} 3... Bg7 {[%clk 0:03:01.3]}
4. e4 {[%clk 0:03:00]} 4... a6 {[%clk 0:03:01.2]} 5. Be2 {[%clk 0:03:00.3]} 5...
Nc6 {[%clk 0:03:01.5]} 6. a4 {[%clk 0:02:59.1]} 6... e6 {[%clk 0:02:59.7]} 7.
O-O {[%clk 0:02:59.3]} 7... d5 {[%clk 0:03:00.1]} 8. e5 {[%clk 0:02:57.6]} 8...
h6 {[%clk 0:02:55.3]} 9. Nb1 {[%clk 0:02:27.2]} 9... Nge7 {[%clk 0:02:54.4]} 10.
c4 {[%clk 0:02:27]} 10... dxc4 {[%clk 0:02:53]} 11. Bxc4 {[%clk 0:02:26.8]}
11... Nf5 {[%clk 0:02:53.2]} 12. Be3 {[%clk 0:02:26.3]} 12... O-O {[%clk
0:02:43.1]} 13. Nc3 {[%clk 0:02:25.5]} 13... b6 {[%clk 0:02:42.3]} 14. Ne4
{[%clk 0:02:23.3]} 14... Bb7 {[%clk 0:02:40.5]} 15. Ng3 {[%clk 0:02:04.4]} 15...
Nxe3 {[%clk 0:02:35]} 16. fxe3 {[%clk 0:02:03.9]} 16... Na5 {[%clk 0:02:34.7]}
17. Bd3 {[%clk 0:01:57.7]} 17... c5 {[%clk 0:02:35]} 18. Be4 {[%clk 0:01:58.1]}
18... cxd4 {[%clk 0:02:32.7]} 19. exd4 {[%clk 0:01:57.6]} 19... Bd5 {[%clk
0:02:25]} 20. Kh1 {[%clk 0:01:48.7]} 20... Rc8 {[%clk 0:02:24.2]} 21. b4 {[%clk
0:01:46.9]} 21... Nc4 {[%clk 0:02:19.1]} 22. Qe2 {[%clk 0:01:45.2]} 22... b5
{[%clk 0:02:01.9]} 23. axb5 {[%clk 0:01:44]} 23... axb5 {[%clk 0:02:02.8]} 24.
Bxd5 {[%clk 0:01:44.5]} 24... Qxd5 {[%clk 0:02:02.6]} 25. Ne4 {[%clk 0:01:44.6]}
25... Ra8 {[%clk 0:01:56.3]} 26. h3 {[%clk 0:01:34.4]} 26... Rxa1 {[%clk
0:01:51.3]} 27. Rxa1 {[%clk 0:01:35.3]} 27... Ra8 {[%clk 0:01:51.9]} 28. Rxa8+
{[%clk 0:01:33.9]} 28... Qxa8 {[%clk 0:01:52.8]} 29. Nd6 {[%clk 0:01:31.6]}
29... Qa1+ {[%clk 0:01:37.6]} 30. Kh2 {[%clk 0:01:31.1]} 30... Nxd6 {[%clk
0:01:37.4]} 31. exd6 {[%clk 0:01:32]} 31... Bxd4 {[%clk 0:01:37.8]} 32. d7
{[%clk 0:01:15.6]} 32... Bf6 {[%clk 0:01:37.8]} 33. Qxb5 {[%clk 0:01:09.8]}
33... Qa8 {[%clk 0:01:29.9]} 34. Qc5 {[%clk 0:01:06.7]} 34... Qb8+ {[%clk
0:01:27.6]} 35. Kh1 {[%clk 0:01:05.6]} 35... Kg7 {[%clk 0:01:24.8]} 36. b5
{[%clk 0:01:05.9]} 36... Qd8 {[%clk 0:01:08.1]} 37. Qc6 {[%clk 0:01:04.2]} 37...
Qa5 {[%clk 0:01:01.8]} 38. Qd6 {[%clk 0:00:48.1]} 38... Bd8 {[%clk 0:00:58.5]}
39. Qe5+ {[%clk 0:00:47.4]} 39... Kg8 {[%clk 0:00:56.6]} 40. Qc5 {[%clk
0:00:39.3]} 40... Bc7 {[%clk 0:00:51.9]} 41. Ng1 {[%clk 0:00:28]} 41... Qb6
{[%clk 0:00:47.4]} 42. Qe7 {[%clk 0:00:25.1]} 42... Qd4 {[%clk 0:00:35.5]} 43.
Qe8+ {[%clk 0:00:20.5]} 43... Kg7 {[%clk 0:00:35.5]} 44. Qc8 {[%clk 0:00:20.8]}
44... Qd6 {[%clk 0:00:33.8]} 45. Nf3 {[%clk 0:00:19.5]} 45... Qd1+ {[%clk
0:00:33.8]} 46. Ng1 {[%clk 0:00:20]} 46... Qd6 {[%clk 0:00:28.3]} 47. Nf3 {[%clk
0:00:15.8]} 47... e5 {[%clk 0:00:25.6]} 48. Nd2 {[%clk 0:00:14.3]} 48... e4
{[%clk 0:00:22.7]} 49. Nf1 {[%clk 0:00:10.7]} 49... Qf4 {[%clk 0:00:18.3]} 50.
Ng3 {[%clk 0:00:01.4]} 50... Qxg3 {[%clk 0:00:13.2]} 51. d8=Q {[%clk 0:00:01.2]}
51... Qe1# {[%clk 0:00:13.2]} 0-1

[Event "Late-Titled-Tuesday-Blitz-December-26-2023"]
[Site "Chess.com"]
[Date "2023.12.26"]
[Round "7"]
[White "yaguigor"]
[Black "lucasmito"]
[Result "0-1"]
[WhiteElo "2577"]
[BlackElo "2744"]
[TimeControl "180+1"]
[EndTime "15:18:08 PST"]
[Termination "lucasmito won on time"]

1. e4 {[%clk 0:03:00.9]} 1... Nf6 {[%clk 0:02:57.4]} 2. e5 {[%clk 0:03:00.1]}
2... Nd5 {[%clk 0:02:56.5]} 3. d4 {[%clk 0:03:00.8]} 3... d6 {[%clk 0:02:56.6]}
4. Nf3 {[%clk 0:03:01]} 4... Nc6 {[%clk 0:02:50.8]} 5. c4 {[%clk 0:02:57.6]}
5... Nb6 {[%clk 0:02:50.6]} 6. e6 {[%clk 0:02:57.3]} 6... fxe6 {[%clk
0:02:49.8]} 7. Nc3 {[%clk 0:02:56.3]} 7... Kf7 {[%clk 0:02:08.7]} 8. Bd3 {[%clk
0:02:40.7]} 8... Kg8 {[%clk 0:02:07.9]} 9. Qe2 {[%clk 0:02:31.3]} 9... Nb4
{[%clk 0:01:46.2]} 10. Bb1 {[%clk 0:02:29.5]} 10... c5 {[%clk 0:01:46.2]} 11.
dxc5 {[%clk 0:02:27.4]} 11... dxc5 {[%clk 0:01:47.1]} 12. O-O {[%clk 0:02:24.7]}
12... Nc6 {[%clk 0:01:45.3]} 13. Rd1 {[%clk 0:02:20.1]} 13... Qe8 {[%clk
0:01:44]} 14. Nb5 {[%clk 0:02:16.6]} 14... Qh5 {[%clk 0:01:37.2]} 15. Nc7 {[%clk
0:02:08.2]} 15... Rb8 {[%clk 0:01:37.5]} 16. Nxe6 {[%clk 0:02:02.1]} 16... Qf7
{[%clk 0:01:31.1]} 17. Nfg5 {[%clk 0:01:51.4]} 17... Qf6 {[%clk 0:01:31.7]} 18.
Bf4 {[%clk 0:01:47]} 18... Ra8 {[%clk 0:01:19.9]} 19. Nxf8 {[%clk 0:00:43.8]}
19... Qxf4 {[%clk 0:00:39]} 20. Nfe6 {[%clk 0:00:41.5]} 20... Qf6 {[%clk
0:00:34.8]} 21. Rd3 {[%clk 0:00:34.1]} 21... Nd4 {[%clk 0:00:27.5]} 22. Nxd4
{[%clk 0:00:29.9]} 22... cxd4 {[%clk 0:00:26.8]} 23. Ne4 {[%clk 0:00:29.3]}
23... Qe5 {[%clk 0:00:25.3]} 24. Rf3 {[%clk 0:00:24]} 24... Bg4 {[%clk
0:00:20.4]} 25. Rf8+ {[%clk 0:00:23.2]} 25... Rxf8 {[%clk 0:00:19.3]} 26. Qxg4
{[%clk 0:00:24.1]} 26... h5 {[%clk 0:00:18]} 27. Qd1 {[%clk 0:00:19.4]} 27...
Nxc4 {[%clk 0:00:15.1]} 28. Qb3 {[%clk 0:00:18.4]} 28... b5 {[%clk 0:00:15.7]}
29. a4 {[%clk 0:00:17.8]} 29... a6 {[%clk 0:00:16.1]} 30. axb5 {[%clk
0:00:17.4]} 30... axb5 {[%clk 0:00:17]} 31. Bd3 {[%clk 0:00:16.9]} 31... h4
{[%clk 0:00:15.2]} 32. h3 {[%clk 0:00:16.4]} 32... Rc8 {[%clk 0:00:12.8]} 33.
Ra7 {[%clk 0:00:15.1]} 33... Rh6 {[%clk 0:00:12.7]} 34. Qb4 {[%clk 0:00:14]}
34... Re6 {[%clk 0:00:11.4]} 35. Qe1 {[%clk 0:00:10.6]} 35... Nd6 {[%clk
0:00:10]} 36. f3 {[%clk 0:00:10.3]} 36... Nf5 {[%clk 0:00:10.3]} 37. Qa5 {[%clk
0:00:09.5]} 37... Ne3 {[%clk 0:00:07.1]} 38. Qxb5 {[%clk 0:00:08.9]} 38... Rc1+
{[%clk 0:00:06.8]} 39. Kf2 {[%clk 0:00:08.5]} 39... Qxb5 {[%clk 0:00:04.2]} 40.
Bxb5 {[%clk 0:00:07.6]} 40... Rc2+ {[%clk 0:00:04.9]} 41. Ke1 {[%clk 0:00:06.2]}
41... Rxb2 {[%clk 0:00:05.8]} 42. Bd3 {[%clk 0:00:05.6]} 42... Re5 {[%clk
0:00:05.2]} 43. Ra8+ {[%clk 0:00:04.7]} 43... Kf7 {[%clk 0:00:05.7]} 44. Ra7
{[%clk 0:00:04.5]} 44... Nxg2+ {[%clk 0:00:05.7]} 45. Kd1 {[%clk 0:00:04]} 45...
Ne3+ {[%clk 0:00:06.6]} 46. Kc1 {[%clk 0:00:04.6]} 46... Rh2 {[%clk 0:00:07.4]}
47. Nd6+ {[%clk 0:00:04]} 47... Ke6 {[%clk 0:00:07.2]} 48. Nc4 {[%clk
0:00:04.5]} 48... Nxc4 {[%clk 0:00:06.6]} 49. Bxc4+ {[%clk 0:00:04.4]} 49... Kf6
{[%clk 0:00:07.5]} 50. Ra6+ {[%clk 0:00:04.1]} 50... e6 {[%clk 0:00:08]} 51. f4
{[%clk 0:00:03.7]} 51... Rc5 {[%clk 0:00:08.5]} 52. Ra4 {[%clk 0:00:03]} 52...
Rxh3 {[%clk 0:00:08.7]} 53. Kd2 {[%clk 0:00:02.2]} 53... Rxc4 {[%clk 0:00:08]}
54. Rxc4 {[%clk 0:00:01.6]} 54... e5 {[%clk 0:00:08.7]} 55. fxe5+ {[%clk
0:00:01.4]} 55... Kxe5 {[%clk 0:00:09.6]} 56. Rc5+ {[%clk 0:00:02]} 56... Ke4
{[%clk 0:00:09.3]} 57. Rg5 {[%clk 0:00:01.1]} 57... Rg3 {[%clk 0:00:09.4]} 0-1

[Event "Late-Titled-Tuesday-Blitz-December-26-2023"]
[Site "Chess.com"]
[Date "2023.12.26"]
[Round "7"]
[White "marvinguevara"]
[Black "micke12a"]
[Result "0-1"]
[WhiteElo "2224"]
[BlackElo "2396"]
[TimeControl "180+1"]
[EndTime "15:18:09 PST"]
[Termination "micke12a won by resignation"]

1. e4 {[%clk 0:02:59.9]} 1... c5 {[%clk 0:02:55.4]} 2. d4 {[%clk 0:03:00]} 2...
cxd4 {[%clk 0:02:55.3]} 3. c3 {[%clk 0:03:00.2]} 3... d3 {[%clk 0:02:55]} 4.
Bxd3 {[%clk 0:02:59.9]} 4... g6 {[%clk 0:02:45.7]} 5. c4 {[%clk 0:02:59.7]} 5...
Bg7 {[%clk 0:02:46.4]} 6. Nc3 {[%clk 0:02:59.9]} 6... Nc6 {[%clk 0:02:47.2]} 7.
Be3 {[%clk 0:03:00]} 7... Nf6 {[%clk 0:02:47.8]} 8. h3 {[%clk 0:02:58.7]} 8...
d6 {[%clk 0:02:48.2]} 9. Nf3 {[%clk 0:02:58.7]} 9... O-O {[%clk 0:02:48.7]} 10.
O-O {[%clk 0:02:58.4]} 10... a6 {[%clk 0:02:46.8]} 11. Nd4 {[%clk 0:02:58.6]}
11... Bd7 {[%clk 0:02:46.2]} 12. Nc2 {[%clk 0:02:53.2]} 12... Rc8 {[%clk
0:02:45.7]} 13. Qd2 {[%clk 0:02:51.2]} 13... Ne5 {[%clk 0:02:45.9]} 14. b3
{[%clk 0:02:48.6]} 14... Qa5 {[%clk 0:02:42.3]} 15. Nd5 {[%clk 0:02:40.7]} 15...
Qxd2 {[%clk 0:02:40.5]} 16. Nxe7+ {[%clk 0:02:40.7]} 16... Kh8 {[%clk
0:02:39.4]} 17. Bxd2 {[%clk 0:02:40.6]} 17... Nxd3 {[%clk 0:02:39.4]} 18. Nxc8
{[%clk 0:02:40.7]} 18... Rxc8 {[%clk 0:02:37.9]} 19. Bc3 {[%clk 0:02:39.8]}
19... Nxe4 {[%clk 0:02:36.1]} 20. Bxg7+ {[%clk 0:02:39.5]} 20... Kxg7 {[%clk
0:02:37]} 21. Rad1 {[%clk 0:02:37.7]} 21... Ndc5 {[%clk 0:02:16.2]} 22. Rfe1
{[%clk 0:02:36.9]} 22... Bc6 {[%clk 0:02:15]} 23. Nb4 {[%clk 0:02:33]} 23... a5
{[%clk 0:02:12.9]} 24. Nd3 {[%clk 0:02:19.4]} 24... Nc3 {[%clk 0:02:08.5]} 25.
Rd2 {[%clk 0:02:12.7]} 25... Nxd3 {[%clk 0:02:05]} 26. Rxd3 {[%clk 0:02:12.4]}
26... Nxa2 {[%clk 0:02:05.5]} 27. Rxd6 {[%clk 0:02:12.4]} 27... a4 {[%clk
0:02:03.6]} 28. bxa4 {[%clk 0:02:10.3]} 28... Bxa4 {[%clk 0:02:03.4]} 29. Ra1
{[%clk 0:02:05.3]} 29... Bb3 {[%clk 0:02:02.3]} 30. Rd7 {[%clk 0:01:59]} 30...
Bxc4 {[%clk 0:01:59.2]} 31. Rxb7 {[%clk 0:01:56.8]} 31... Nc3 {[%clk 0:01:58.2]}
32. Kh2 {[%clk 0:01:54.2]} 32... Ne4 {[%clk 0:01:56.6]} 33. f3 {[%clk
0:01:46.3]} 33... Nd6 {[%clk 0:01:56.7]} 34. Rd7 {[%clk 0:01:45.1]} 34... Nf5
{[%clk 0:01:56.6]} 35. Raa7 {[%clk 0:01:36.8]} 35... Be6 {[%clk 0:01:56.2]} 36.
Rd2 {[%clk 0:01:32.6]} 36... h5 {[%clk 0:01:54.2]} 37. Re2 {[%clk 0:01:31.9]}
37... Kf6 {[%clk 0:01:51.8]} 38. Rd2 {[%clk 0:01:22.8]} 38... h4 {[%clk
0:01:50.7]} 39. Ra4 {[%clk 0:01:17.3]} 39... Rc1 {[%clk 0:01:49.6]} 40. Rb4
{[%clk 0:01:00.6]} 40... Ng3 {[%clk 0:01:45.7]} 41. Rf4+ {[%clk 0:00:47.1]}
41... Kg5 {[%clk 0:01:42.3]} 42. Rxh4 {[%clk 0:00:37.6]} 42... Kxh4 {[%clk
0:01:39.4]} 43. Rd4+ {[%clk 0:00:37.2]} 43... Kg5 {[%clk 0:01:36.4]} 44. Kxg3
{[%clk 0:00:37]} 44... f5 {[%clk 0:01:27.1]} 45. Rd6 {[%clk 0:00:35.9]} 45...
Kf6 {[%clk 0:01:26.7]} 46. Ra6 {[%clk 0:00:35.9]} 46... g5 {[%clk 0:01:26.2]}
47. Rb6 {[%clk 0:00:27]} 47... Rc5 {[%clk 0:01:25.6]} 48. Ra6 {[%clk 0:00:26.8]}
48... Ke5 {[%clk 0:01:25.3]} 49. Ra3 {[%clk 0:00:25.5]} 49... Rc4 {[%clk
0:01:23.6]} 50. Re3+ {[%clk 0:00:25.4]} 50... Re4 {[%clk 0:01:07.5]} 51. Ra3
{[%clk 0:00:19.7]} 51... Re2 {[%clk 0:01:04.6]} 52. Ra5+ {[%clk 0:00:19.2]}
52... Bd5 {[%clk 0:01:04.7]} 53. Rc5 {[%clk 0:00:15.2]} 53... f4+ {[%clk
0:01:02.7]} 54. Kh2 {[%clk 0:00:14.4]} 54... Kd4 {[%clk 0:01:00.3]} 55. Rc8
{[%clk 0:00:10.4]} 55... Bxf3 {[%clk 0:00:58.4]} 56. Rd8+ {[%clk 0:00:08.7]}
56... Kc5 {[%clk 0:00:58.7]} 57. Rc8+ {[%clk 0:00:09.2]} 57... Kd6 {[%clk
0:00:58.8]} 58. Rd8+ {[%clk 0:00:09.8]} 58... Kc7 {[%clk 0:00:59]} 59. Rg8
{[%clk 0:00:09]} 59... Rxg2+ {[%clk 0:00:58.5]} 60. Kh1 {[%clk 0:00:09.6]} 60...
Rg3+ {[%clk 0:00:58.9]} 61. Kh2 {[%clk 0:00:09.1]} 61... Kd6 {[%clk 0:00:59.1]}
62. h4 {[%clk 0:00:08.6]} 62... gxh4 {[%clk 0:00:59.3]} 63. Rf8 {[%clk
0:00:07.1]} 63... Ke5 {[%clk 0:00:59.1]} 64. Re8+ {[%clk 0:00:07.4]} 64... Kf5
{[%clk 0:00:58.8]} 65. Rf8+ {[%clk 0:00:07.8]} 65... Ke4 {[%clk 0:00:59.5]} 66.
Re8+ {[%clk 0:00:08.1]} 66... Kd3 {[%clk 0:01:00.2]} 67. Rf8 {[%clk 0:00:08.4]}
67... Ke3 {[%clk 0:01:00.4]} 68. Re8+ {[%clk 0:00:08.4]} 68... Be4 {[%clk
0:01:00.9]} 69. Rh8 {[%clk 0:00:07.4]} 69... f3 {[%clk 0:00:56.8]} 70. Rxh4
{[%clk 0:00:07.4]} 70... Rg2+ {[%clk 0:00:57.3]} 71. Kh1 {[%clk 0:00:06.8]}
71... Ra2 {[%clk 0:00:48.6]} 72. Kg1 {[%clk 0:00:06.6]} 72... f2+ {[%clk
0:00:48.6]} 73. Kh2 {[%clk 0:00:06.8]} 73... f1=Q+ {[%clk 0:00:48.5]} 0-1

[Event "Late-Titled-Tuesday-Blitz-December-26-2023"]
[Site "Chess.com"]
[Date "2023.12.26"]
[Round "7"]
[White "shaya01"]
[Black "SmirnovTimofey2000"]
[Result "1-0"]
[WhiteElo "2221"]
[BlackElo "2003"]
[TimeControl "180+1"]
[EndTime "15:18:09 PST"]
[Termination "shaya01 won by checkmate"]

1. d4 {[%clk 0:03:00.9]} 1... d5 {[%clk 0:02:59.8]} 2. c4 {[%clk 0:02:59]} 2...
c6 {[%clk 0:03:00.1]} 3. e3 {[%clk 0:02:58]} 3... Bf5 {[%clk 0:02:58.6]} 4. Nc3
{[%clk 0:02:57]} 4... e6 {[%clk 0:02:58.7]} 5. Nf3 {[%clk 0:02:56.6]} 5... Nf6
{[%clk 0:02:57.5]} 6. b3 {[%clk 0:02:52.4]} 6... Bb4 {[%clk 0:02:49.1]} 7. Bd2
{[%clk 0:02:52.2]} 7... O-O {[%clk 0:02:47]} 8. Nh4 {[%clk 0:02:49.8]} 8... Bg6
{[%clk 0:02:45.6]} 9. Nxg6 {[%clk 0:02:49.2]} 9... hxg6 {[%clk 0:02:45.7]} 10.
Bd3 {[%clk 0:02:46.9]} 10... Nbd7 {[%clk 0:02:39]} 11. a3 {[%clk 0:02:45.8]}
11... Bxc3 {[%clk 0:02:39]} 12. Bxc3 {[%clk 0:02:45.8]} 12... Ne4 {[%clk
0:02:39.7]} 13. Bxe4 {[%clk 0:02:40.9]} 13... dxe4 {[%clk 0:02:40]} 14. d5
{[%clk 0:02:40.7]} 14... exd5 {[%clk 0:02:35.4]} 15. cxd5 {[%clk 0:02:40.7]}
15... Nf6 {[%clk 0:02:28]} 16. dxc6 {[%clk 0:02:21]} 16... bxc6 {[%clk 0:02:22]}
17. Qe2 {[%clk 0:02:17]} 17... Nd5 {[%clk 0:02:19.5]} 18. Bd4 {[%clk 0:02:14.2]}
18... Qa5+ {[%clk 0:02:13.9]} 19. b4 {[%clk 0:02:13.1]} 19... Qd8 {[%clk
0:01:51.3]} 20. h4 {[%clk 0:02:12.4]} 20... a5 {[%clk 0:01:45.6]} 21. h5 {[%clk
0:02:09.4]} 21... Qg5 {[%clk 0:01:36.7]} 22. hxg6 {[%clk 0:01:45.7]} 22... Qxg6
{[%clk 0:01:37.6]} 23. Kd2 {[%clk 0:01:29.4]} 23... axb4 {[%clk 0:01:37]} 24.
Rh2 {[%clk 0:01:02.6]} 24... Nc3 {[%clk 0:01:26.6]} 25. Rah1 {[%clk 0:00:58.3]}
25... f6 {[%clk 0:01:18.5]} 26. Qc4+ {[%clk 0:00:50]} 26... Nd5 {[%clk
0:01:11.8]} 27. Qxc6 {[%clk 0:00:43.2]} 27... Qf5 {[%clk 0:00:59]} 28. Rh8+
{[%clk 0:00:21.7]} 28... Kf7 {[%clk 0:00:59.1]} 29. Qb7+ {[%clk 0:00:21.9]}
29... Ne7 {[%clk 0:00:56]} 30. Rxf8+ {[%clk 0:00:06.5]} 30... Rxf8 {[%clk
0:00:56.9]} 31. axb4 {[%clk 0:00:04.9]} 31... Qxf2+ {[%clk 0:00:56.7]} 32. Kc3
{[%clk 0:00:04.7]} 32... Rc8+ {[%clk 0:00:56.9]} 33. Bc5 {[%clk 0:00:04.9]}
33... Qxe3+ {[%clk 0:00:55.8]} 34. Kb2 {[%clk 0:00:04.3]} 34... Qd2+ {[%clk
0:00:55.2]} 35. Kb3 {[%clk 0:00:04.7]} 35... Qd3+ {[%clk 0:00:55.1]} 36. Kb2
{[%clk 0:00:05]} 36... Qe2+ {[%clk 0:00:18.1]} 37. Kb3 {[%clk 0:00:04.3]} 37...
Qxg2 {[%clk 0:00:17.1]} 38. Qxe7+ {[%clk 0:00:03.7]} 38... Kg6 {[%clk
0:00:13.2]} 39. Rg1 {[%clk 0:00:04]} 39... Qxg1 {[%clk 0:00:06.1]} 40. Bxg1
{[%clk 0:00:03.5]} 40... Kh7 {[%clk 0:00:07]} 41. Qxe4+ {[%clk 0:00:02.9]} 41...
Kg8 {[%clk 0:00:04.8]} 42. Qd5+ {[%clk 0:00:03.2]} 42... Kh8 {[%clk 0:00:04.6]}
43. Qh5+ {[%clk 0:00:03.7]} 43... Kg8 {[%clk 0:00:04.7]} 44. Qd5+ {[%clk
0:00:03.7]} 44... Kh8 {[%clk 0:00:05]} 45. b5 {[%clk 0:00:04.4]} 45... Rb8
{[%clk 0:00:04.4]} 46. b6 {[%clk 0:00:03.5]} 46... Rxb6+ {[%clk 0:00:04]} 47.
Bxb6 {[%clk 0:00:02.8]} 47... Kh7 {[%clk 0:00:04.3]} 48. Qf5+ {[%clk 0:00:03]}
48... Kg8 {[%clk 0:00:05.2]} 49. Bd8 {[%clk 0:00:03.1]} 49... Kf7 {[%clk
0:00:06.1]} 50. Bxf6 {[%clk 0:00:02.9]} 50... gxf6 {[%clk 0:00:06.4]} 51. Kc4
{[%clk 0:00:03]} 51... Ke7 {[%clk 0:00:07.3]} 52. Kd5 {[%clk 0:00:03.4]} 52...
Kf7 {[%clk 0:00:08.2]} 53. Kd6 {[%clk 0:00:03.3]} 53... Kg7 {[%clk 0:00:08.2]}
54. Ke6 {[%clk 0:00:03.9]} 54... Kh8 {[%clk 0:00:06.9]} 55. Qxf6+ {[%clk
0:00:04.4]} 55... Kh7 {[%clk 0:00:07.7]} 56. Qg5 {[%clk 0:00:04.4]} 56... Kh8
{[%clk 0:00:08.2]} 57. Kf7 {[%clk 0:00:04.6]} 57... Kh7 {[%clk 0:00:07]} 58.
Qg7# {[%clk 0:00:05.2]} 1-0

[Event "Late-Titled-Tuesday-Blitz-December-26-2023"]
[Site "Chess.com"]
[Date "2023.12.26"]
[Round "7"]
[White "Dr_crypt"]
[Black "anasta10"]
[Result "0-1"]
[WhiteElo "2382"]
[BlackElo "2618"]
[TimeControl "180+1"]
[EndTime "15:18:29 PST"]
[Termination "anasta10 won on time"]

1. Nf3 {[%clk 0:03:00]} 1... Nf6 {[%clk 0:02:59.7]} 2. b3 {[%clk 0:02:59.3]}
2... g6 {[%clk 0:03:00.1]} 3. Bb2 {[%clk 0:02:59.2]} 3... Bg7 {[%clk 0:03:00.7]}
4. c4 {[%clk 0:02:58.2]} 4... O-O {[%clk 0:03:00.7]} 5. g3 {[%clk 0:02:58.2]}
5... c5 {[%clk 0:03:00.9]} 6. Bg2 {[%clk 0:02:58.3]} 6... Nc6 {[%clk 0:03:01.6]}
7. O-O {[%clk 0:02:58.4]} 7... d6 {[%clk 0:03:02.1]} 8. d4 {[%clk 0:02:57.5]}
8... Ne4 {[%clk 0:03:00.8]} 9. Nbd2 {[%clk 0:02:55.9]} 9... Bf5 {[%clk
0:02:53.7]} 10. Nxe4 {[%clk 0:02:19.8]} 10... Bxe4 {[%clk 0:02:52.2]} 11. Qd2
{[%clk 0:02:20.5]} 11... Qa5 {[%clk 0:01:35]} 12. Qxa5 {[%clk 0:02:06.7]} 12...
Nxa5 {[%clk 0:01:35.9]} 13. e3 {[%clk 0:02:01]} 13... Rab8 {[%clk 0:01:26.4]}
14. Rac1 {[%clk 0:01:56.3]} 14... Rfc8 {[%clk 0:01:22.8]} 15. Bc3 {[%clk
0:01:53.4]} 15... Nc6 {[%clk 0:01:20.8]} 16. dxc5 {[%clk 0:01:44.6]} 16... dxc5
{[%clk 0:01:19.2]} 17. Bxg7 {[%clk 0:01:43.3]} 17... Kxg7 {[%clk 0:01:20.1]} 18.
Rfd1 {[%clk 0:01:43.3]} 18... Rd8 {[%clk 0:01:20.3]} 19. Ne1 {[%clk 0:01:28.6]}
19... Bxg2 {[%clk 0:01:19.1]} 20. Nxg2 {[%clk 0:01:29.5]} 20... b6 {[%clk
0:01:05.6]} 21. Kf1 {[%clk 0:01:28.4]} 21... Nb4 {[%clk 0:00:53.5]} 22. a3
{[%clk 0:01:23.7]} 22... Nd3 {[%clk 0:00:53.1]} 23. Rb1 {[%clk 0:01:20]} 23...
Ne5 {[%clk 0:00:53.2]} 24. Ke2 {[%clk 0:01:17.8]} 24... Rxd1 {[%clk 0:00:45.1]}
25. Rxd1 {[%clk 0:01:14.4]} 25... b5 {[%clk 0:00:44.4]} 26. Rd5 {[%clk
0:01:09.9]} 26... bxc4 {[%clk 0:00:38.6]} 27. bxc4 {[%clk 0:00:50.9]} 27... Nxc4
{[%clk 0:00:38.4]} 28. Rxc5 {[%clk 0:00:51]} 28... Rb2+ {[%clk 0:00:35.5]} 29.
Kf3 {[%clk 0:00:49.3]} 29... Nd2+ {[%clk 0:00:30.3]} 30. Kf4 {[%clk 0:00:35.4]}
30... Nb3 {[%clk 0:00:26.4]} 31. Rb5 {[%clk 0:00:29.2]} 31... Rxf2+ {[%clk
0:00:26.2]} 32. Kg4 {[%clk 0:00:28.6]} 32... Rxg2 {[%clk 0:00:25.8]} 33. Rxb3
{[%clk 0:00:27.9]} 33... Ra2 {[%clk 0:00:19.6]} 34. h4 {[%clk 0:00:26.4]} 34...
h5+ {[%clk 0:00:18.8]} 35. Kg5 {[%clk 0:00:23.7]} 35... e6 {[%clk 0:00:17]} 36.
Kf4 {[%clk 0:00:18.6]} 36... a5 {[%clk 0:00:16.5]} 37. Rc3 {[%clk 0:00:17.9]}
37... a4 {[%clk 0:00:16.5]} 38. Ke5 {[%clk 0:00:16]} 38... Rg2 {[%clk
0:00:16.1]} 39. e4 {[%clk 0:00:16.1]} 39... Rb2 {[%clk 0:00:15.4]} 40. Kd4
{[%clk 0:00:13.9]} 40... Kf6 {[%clk 0:00:14.2]} 41. Rf3+ {[%clk 0:00:13.4]}
41... Ke7 {[%clk 0:00:14.2]} 42. e5 {[%clk 0:00:10.1]} 42... Rd2+ {[%clk
0:00:13.5]} 43. Kc4 {[%clk 0:00:09.2]} 43... Rd5 {[%clk 0:00:13.2]} 44. Re3
{[%clk 0:00:09.4]} 44... Kd7 {[%clk 0:00:11.3]} 45. Kb4 {[%clk 0:00:09.4]} 45...
Rd4+ {[%clk 0:00:11.4]} 46. Kc5 {[%clk 0:00:09.6]} 46... Rg4 {[%clk 0:00:11.4]}
47. Rd3+ {[%clk 0:00:09]} 47... Ke7 {[%clk 0:00:11.8]} 48. Re3 {[%clk
0:00:09.1]} 48... f6 {[%clk 0:00:11.6]} 49. exf6+ {[%clk 0:00:08.9]} 49... Kxf6
{[%clk 0:00:12.5]} 50. Kd6 {[%clk 0:00:09.1]} 50... Rd4+ {[%clk 0:00:10.8]} 51.
Kc5 {[%clk 0:00:09.6]} 51... e5 {[%clk 0:00:11]} 52. Rf3+ {[%clk 0:00:06.6]}
52... Ke6 {[%clk 0:00:11.3]} 53. Re3 {[%clk 0:00:06.2]} 53... Rg4 {[%clk
0:00:11.5]} 54. Kb5 {[%clk 0:00:05.9]} 54... Kd5 {[%clk 0:00:09.1]} 55. Rc3
{[%clk 0:00:05.3]} 55... Rd4 {[%clk 0:00:07.3]} 56. Rc6 {[%clk 0:00:04.1]} 56...
e4 {[%clk 0:00:06]} 57. Rxg6 {[%clk 0:00:04.2]} 57... e3 {[%clk 0:00:06.5]} 58.
Rg5+ {[%clk 0:00:04.4]} 58... Ke4 {[%clk 0:00:06.9]} 59. Rxh5 {[%clk 0:00:01.6]}
59... e2 {[%clk 0:00:07.1]} 60. Rh8 {[%clk 0:00:01.4]} 60... Rd5+ {[%clk
0:00:06.6]} 0-1